[Event "Titled Tuesday Blitz April 05 Late 2022"]
[White "Cagara, Paulina"]
[Black "Derraugh, Geordie"]
[WhiteFideId "1124870"]
[BlackFideId "2603950"]
[WhiteElo "1780"]
[BlackElo "2116"]
[Result "0-1"]
[Round "06"]
[TimeControl "180+1"]
[Date "2022.04.06"]
[WhiteClock "0:00:09"]
[BlackClock "0:01:10"]

1. e4 {[%clk 0:03:00]}  c5 {[%clk 0:02:59]} 2. Nc3 {[%clk 0:03:00]}  d6 {[%clk 0:02:59]} 3. g3 {[%clk 0:02:59]}  Nc6 {[%clk 0:02:59]} 4. Bg2 {[%clk 0:03:00]}  g6 {[%clk 0:02:59]} 5. Nge2 {[%clk 0:02:59]}  Bg7 {[%clk 0:02:59]} 6. O-O {[%clk 0:02:59]}  e6 {[%clk 0:03:00]} 7. d3 {[%clk 0:02:59]}  Nh6 {[%clk 0:03:00]} 8. f4 {[%clk 0:02:59]}  f5 {[%clk 0:03:00]} 9. h3 {[%clk 0:02:54]}  O-O {[%clk 0:03:00]} 10. Be3 {[%clk 0:02:54]}  Nf7 {[%clk 0:03:00]} 11. Qd2 {[%clk 0:02:52]}  Qc7 {[%clk 0:02:58]} 12. Nb5 {[%clk 0:02:43]}  Qb6 {[%clk 0:02:55]} 13. c4 {[%clk 0:02:15]}  a6 {[%clk 0:02:53]} 14. Nbc3 {[%clk 0:02:15]}  Bd7 {[%clk 0:02:52]} 15. a3 {[%clk 0:02:11]}  Rad8 {[%clk 0:02:51]} 16. b4 {[%clk 0:02:10]}  Nd4 {[%clk 0:02:42]} 17. Bxd4 {[%clk 0:02:02]}  cxd4 {[%clk 0:02:43]} 18. Nd1 {[%clk 0:01:56]}  Bc6 {[%clk 0:02:37]} 19. Nf2 {[%clk 0:01:54]}  e5 {[%clk 0:02:33]} 20. exf5 {[%clk 0:01:47]}  Bxg2 {[%clk 0:02:33]} 21. fxg6 {[%clk 0:01:41]}  Bxf1 {[%clk 0:02:17]} 22. gxf7+ {[%clk 0:01:40]}  Rxf7 {[%clk 0:02:17]} 23. Rxf1 {[%clk 0:01:39]}  d5 {[%clk 0:02:09]} 24. c5 {[%clk 0:01:38]}  Qg6 {[%clk 0:02:08]} 25. Ng4 {[%clk 0:01:31]}  Rdf8 {[%clk 0:02:02]} 26. Kh2 {[%clk 0:01:16]}  e4 {[%clk 0:01:52]} 27. Rg1 {[%clk 0:01:02]}  h5 {[%clk 0:01:48]} 28. f5 {[%clk 0:00:54]}  Rxf5 {[%clk 0:01:40]} 29. Nf4 {[%clk 0:00:48]}  Qg5 {[%clk 0:01:30]} 30. dxe4 {[%clk 0:00:45]}  dxe4 {[%clk 0:01:29]} 31. Qa2+ {[%clk 0:00:45]}  Kh7 {[%clk 0:01:27]} 32. Qe6 {[%clk 0:00:17]}  hxg4 {[%clk 0:01:23]} 33. h4 {[%clk 0:00:17]}  Qf6 {[%clk 0:01:20]} 34. Qxf6 {[%clk 0:00:14]}  Bxf6 {[%clk 0:01:11]} 35. Ng2 {[%clk 0:00:11]}  Rf3 {[%clk 0:01:10]} 36. Re1 {[%clk 0:00:10]}  e3 {[%clk 0:01:10]} 37. Rd1 {[%clk 0:00:09]}  Be5 {[%clk 0:01:10]} 0-1


[Site "https://www.chess.com"]

[Event "Titled Tuesday Blitz April 05 Late 2022"]
[White "Calderon, Zachary"]
[Black "Levin, Anthony"]
[WhiteFideId "2076969"]
[BlackFideId "30940680"]
[WhiteElo "2286"]
[BlackElo "2029"]
[Result "0-1"]
[Round "06"]
[TimeControl "180+1"]
[Date "2022.04.06"]
[WhiteClock "0:00:10"]
[BlackClock "0:00:09"]

1. d4 {[%clk 0:03:00]}  Nf6 {[%clk 0:02:45]} 2. Bf4 {[%clk 0:03:00]}  g6 {[%clk 0:02:45]} 3. Nc3 {[%clk 0:03:00]}  d5 {[%clk 0:02:44]} 4. e3 {[%clk 0:03:00]}  Bg7 {[%clk 0:02:41]} 5. h4 {[%clk 0:03:00]}  h5 {[%clk 0:02:35]} 6. Nf3 {[%clk 0:02:59]}  Bg4 {[%clk 0:02:33]} 7. Qd2 {[%clk 0:02:58]}  Bxf3 {[%clk 0:02:31]} 8. gxf3 {[%clk 0:02:59]}  O-O {[%clk 0:02:29]} 9. Bd3 {[%clk 0:02:59]}  c5 {[%clk 0:02:28]} 10. O-O-O {[%clk 0:02:56]}  cxd4 {[%clk 0:02:28]} 11. exd4 {[%clk 0:02:57]}  Nc6 {[%clk 0:02:28]} 12. Bh6 {[%clk 0:02:56]}  Rc8 {[%clk 0:02:15]} 13. Bxg7 {[%clk 0:02:52]}  Kxg7 {[%clk 0:02:15]} 14. Rhg1 {[%clk 0:02:47]}  Nb4 {[%clk 0:02:08]} 15. a3 {[%clk 0:02:36]}  Nxd3+ {[%clk 0:02:06]} 16. Qxd3 {[%clk 0:02:36]}  e6 {[%clk 0:01:43]} 17. Rg5 {[%clk 0:02:35]}  Nh7 {[%clk 0:01:37]} 18. Re5 {[%clk 0:02:23]}  Qxh4 {[%clk 0:01:35]} 19. Qe3 {[%clk 0:02:06]}  Rh8 {[%clk 0:01:00]} 20. Rg1 {[%clk 0:01:52]}  Nf6 {[%clk 0:00:45]} 21. Ne2 {[%clk 0:01:26]}  Rc4 {[%clk 0:00:36]} 22. Nf4 {[%clk 0:01:17]}  Rhc8 {[%clk 0:00:30]} 23. c3 {[%clk 0:01:15]}  R4c6 {[%clk 0:00:19]} 24. Nxg6 {[%clk 0:00:55]}  fxg6 {[%clk 0:00:18]} 25. Qd3 {[%clk 0:00:56]}  Kf7 {[%clk 0:00:09]} 26. Qxg6+ {[%clk 0:00:54]}  Ke7 {[%clk 0:00:10]} 27. Qg7+ {[%clk 0:00:40]}  Kd6 {[%clk 0:00:10]} 28. Rg6 {[%clk 0:00:29]}  Qxd4 {[%clk 0:00:08]} 29. f4 {[%clk 0:00:09]}  Rxc3+ {[%clk 0:00:08]} 30. bxc3 {[%clk 0:00:09]}  Rxc3+ {[%clk 0:00:09]} 31. Kb2 {[%clk 0:00:09]}  Qd2+ {[%clk 0:00:09]} 32. Kb1 {[%clk 0:00:10]}  Rc1# {[%clk 0:00:09]} 0-1


[Site "https://www.chess.com"]

[Event "Titled Tuesday Blitz April 05 Late 2022"]
[White "Constantinou, Peter"]
[Black "Arabidze, Meri"]
[WhiteFideId "413038"]
[BlackFideId "13604040"]
[WhiteElo "2407"]
[BlackElo "2604"]
[Result "1/2-1/2"]
[Round "06"]
[TimeControl "180+1"]
[Date "2022.04.06"]
[WhiteClock "0:00:19"]
[BlackClock "0:00:07"]

1. b3 {[%clk 0:03:00]}  Nf6 {[%clk 0:02:55]} 2. Bb2 {[%clk 0:03:01]}  g6 {[%clk 0:02:55]} 3. c4 {[%clk 0:03:00]}  Bg7 {[%clk 0:02:55]} 4. e3 {[%clk 0:03:00]}  O-O {[%clk 0:02:55]} 5. Nf3 {[%clk 0:03:00]}  b6 {[%clk 0:02:55]} 6. d4 {[%clk 0:03:00]}  Bb7 {[%clk 0:02:55]} 7. Nc3 {[%clk 0:03:01]}  e6 {[%clk 0:02:54]} 8. Be2 {[%clk 0:03:00]}  d5 {[%clk 0:02:54]} 9. O-O {[%clk 0:03:00]}  Nbd7 {[%clk 0:02:54]} 10. Rc1 {[%clk 0:02:59]}  c5 {[%clk 0:02:52]} 11. cxd5 {[%clk 0:02:58]}  Nxd5 {[%clk 0:02:51]} 12. Nxd5 {[%clk 0:02:55]}  Bxd5 {[%clk 0:02:51]} 13. Qd2 {[%clk 0:02:54]}  Rc8 {[%clk 0:02:35]} 14. Rfd1 {[%clk 0:02:51]}  Qe7 {[%clk 0:02:09]} 15. Ba3 {[%clk 0:02:33]}  Rfd8 {[%clk 0:02:01]} 16. Ba6 {[%clk 0:02:32]}  Rb8 {[%clk 0:01:45]} 17. Qe2 {[%clk 0:02:30]}  Qf6 {[%clk 0:01:37]} 18. e4 {[%clk 0:02:25]}  Ba8 {[%clk 0:01:33]} 19. dxc5 {[%clk 0:01:26]}  Nxc5 {[%clk 0:01:32]} 20. Bxc5 {[%clk 0:01:26]}  bxc5 {[%clk 0:01:30]} 21. g3 {[%clk 0:01:10]}  Bf8 {[%clk 0:01:08]} 22. Bc4 {[%clk 0:01:05]}  h6 {[%clk 0:01:04]} 23. h4 {[%clk 0:01:01]}  Bb7 {[%clk 0:00:58]} 24. Qe3 {[%clk 0:01:01]}  Rxd1+ {[%clk 0:00:53]} 25. Rxd1 {[%clk 0:01:00]}  Rd8 {[%clk 0:00:54]} 26. Rxd8 {[%clk 0:00:54]}  Qxd8 {[%clk 0:00:55]} 27. Ne5 {[%clk 0:00:37]}  Qd6 {[%clk 0:00:50]} 28. Nd3 {[%clk 0:00:29]}  Qc6 {[%clk 0:00:50]} 29. f3 {[%clk 0:00:27]}  a5 {[%clk 0:00:43]} 30. a4 {[%clk 0:00:26]}  Qd6 {[%clk 0:00:40]} 31. Kg2 {[%clk 0:00:24]}  h5 {[%clk 0:00:40]} 32. Qf4 {[%clk 0:00:23]}  Qxf4 {[%clk 0:00:20]} 33. Nxf4 {[%clk 0:00:24]}  Bd6 {[%clk 0:00:19]} 34. Nd3 {[%clk 0:00:24]}  Kf8 {[%clk 0:00:20]} 35. Nb2 {[%clk 0:00:19]}  Ke7 {[%clk 0:00:18]} 36. Bd3 {[%clk 0:00:19]}  f5 {[%clk 0:00:16]} 37. Nc4 {[%clk 0:00:19]}  Bc7 {[%clk 0:00:16]} 38. Kf2 {[%clk 0:00:19]}  Ba6 {[%clk 0:00:14]} 39. Nb2 {[%clk 0:00:15]}  Be5 {[%clk 0:00:10]} 40. Nc4 {[%clk 0:00:10]}  Bd4+ {[%clk 0:00:09]} 41. Ke2 {[%clk 0:00:10]}  Bxc4 {[%clk 0:00:09]} 42. Bxc4 {[%clk 0:00:11]}  Be5 {[%clk 0:00:09]} 43. f4 {[%clk 0:00:10]}  Bd4 {[%clk 0:00:09]} 44. Kf3 {[%clk 0:00:10]}  Kf6 {[%clk 0:00:08]} 45. Bb5 {[%clk 0:00:10]}  Bc3 {[%clk 0:00:07]} 46. Be8 {[%clk 0:00:09]}  Be1 {[%clk 0:00:04]} 47. Bc6 {[%clk 0:00:06]}  Bc3 {[%clk 0:00:03]} 48. Be8 {[%clk 0:00:06]}  Be1 {[%clk 0:00:03]} 49. Bd7 {[%clk 0:00:06]}  Bb4 {[%clk 0:00:03]} 50. Bb5 {[%clk 0:00:07]}  Bc3 {[%clk 0:00:03]} 51. Bd3 {[%clk 0:00:07]}  Bb4 {[%clk 0:00:03]} 52. Bc4 {[%clk 0:00:08]}  Bc3 {[%clk 0:00:03]} 53. Bb5 {[%clk 0:00:08]}  Bb4 {[%clk 0:00:04]} 54. e5+ {[%clk 0:00:08]}  Ke7 {[%clk 0:00:03]} 55. Bc6 {[%clk 0:00:08]}  Bc3 {[%clk 0:00:04]} 56. Bb7 {[%clk 0:00:09]}  Bb4 {[%clk 0:00:04]} 57. Ke2 {[%clk 0:00:09]}  Bc3 {[%clk 0:00:04]} 58. Ba6 {[%clk 0:00:09]}  Bb4 {[%clk 0:00:04]} 59. Bb5 {[%clk 0:00:09]}  Bc3 {[%clk 0:00:05]} 60. Ke3 {[%clk 0:00:09]}  Bb4 {[%clk 0:00:05]} 61. Kf3 {[%clk 0:00:09]}  Bc3 {[%clk 0:00:05]} 62. Bf1 {[%clk 0:00:09]}  Bb4 {[%clk 0:00:05]} 63. Ke2 {[%clk 0:00:09]}  Bc3 {[%clk 0:00:06]} 64. Bg2 {[%clk 0:00:10]}  Bb4 {[%clk 0:00:06]} 65. Ke3 {[%clk 0:00:11]}  Bc3 {[%clk 0:00:06]} 66. Bc6 {[%clk 0:00:11]}  Bb4 {[%clk 0:00:06]} 67. Bf3 {[%clk 0:00:11]}  Bc3 {[%clk 0:00:06]} 68. Kf2 {[%clk 0:00:12]}  Bd4+ {[%clk 0:00:06]} 69. Kg2 {[%clk 0:00:13]}  Bc3 {[%clk 0:00:07]} 70. Be2 {[%clk 0:00:14]}  Bb4 {[%clk 0:00:07]} 71. Bc4 {[%clk 0:00:14]}  Bc3 {[%clk 0:00:07]} 72. Bd3 {[%clk 0:00:15]}  Bb4 {[%clk 0:00:07]} 73. Bb5 {[%clk 0:00:16]}  Bc3 {[%clk 0:00:08]} 74. Bc4 {[%clk 0:00:17]}  Bb4 {[%clk 0:00:08]} 75. Bf1 {[%clk 0:00:17]}  Bc3 {[%clk 0:00:08]} 76. Kh3 {[%clk 0:00:18]}  Bd2 {[%clk 0:00:07]} 77. Bc4 {[%clk 0:00:19]}  Be1 {[%clk 0:00:08]} 78. Ba6 {[%clk 0:00:19]}  Bd2 {[%clk 0:00:08]} 79. Kg2 {[%clk 0:00:20]}  Be1 {[%clk 0:00:08]} 80. Kf3 {[%clk 0:00:20]}  Bc3 {[%clk 0:00:08]} 81. Ke2 {[%clk 0:00:20]}  Bb4 {[%clk 0:00:08]} 82. Kd1 {[%clk 0:00:20]}  Bc3 {[%clk 0:00:07]} 83. Ke2 {[%clk 0:00:19]} 1/2-1/2


[Site "https://www.chess.com"]

[Event "Titled Tuesday Blitz April 05 Late 2022"]
[White "Diaz Perez, Michel Alejandro"]
[Black "Zhou, Qiyu"]
[WhiteFideId "3517179"]
[BlackFideId "505161"]
[WhiteElo "2636"]
[BlackElo "2383"]
[Result "1-0"]
[Round "06"]
[TimeControl "180+1"]
[Date "2022.04.06"]
[WhiteClock "0:01:49"]
[BlackClock "0:00:33"]

1. e4 {[%clk 0:03:00]}  e5 {[%clk 0:02:57]} 2. Nf3 {[%clk 0:03:00]}  Nc6 {[%clk 0:02:57]} 3. Bb5 {[%clk 0:03:00]}  a6 {[%clk 0:02:58]} 4. Ba4 {[%clk 0:03:01]}  Nf6 {[%clk 0:02:58]} 5. O-O {[%clk 0:03:01]}  b5 {[%clk 0:02:58]} 6. Bb3 {[%clk 0:03:01]}  Be7 {[%clk 0:02:58]} 7. a4 {[%clk 0:03:00]}  b4 {[%clk 0:02:57]} 8. d3 {[%clk 0:02:59]}  O-O {[%clk 0:02:57]} 9. Re1 {[%clk 0:02:58]}  d6 {[%clk 0:02:57]} 10. a5 {[%clk 0:02:58]}  Rb8 {[%clk 0:02:54]} 11. h3 {[%clk 0:02:57]}  h6 {[%clk 0:02:48]} 12. Be3 {[%clk 0:02:55]}  Be6 {[%clk 0:02:46]} 13. Nbd2 {[%clk 0:02:50]}  Nh7 {[%clk 0:02:36]} 14. Nc4 {[%clk 0:02:47]}  Ng5 {[%clk 0:02:32]} 15. Ba4 {[%clk 0:02:45]}  Bxc4 {[%clk 0:02:03]} 16. Bxc6 {[%clk 0:02:43]}  Bb5 {[%clk 0:01:56]} 17. Bd5 {[%clk 0:02:42]}  c6 {[%clk 0:01:56]} 18. Bb3 {[%clk 0:02:41]}  Ne6 {[%clk 0:01:50]} 19. d4 {[%clk 0:02:29]}  exd4 {[%clk 0:01:47]} 20. Nxd4 {[%clk 0:02:30]}  Nxd4 {[%clk 0:01:46]} 21. Qxd4 {[%clk 0:02:31]}  c5 {[%clk 0:01:40]} 22. Qd5 {[%clk 0:02:30]}  Qc7 {[%clk 0:01:35]} 23. Bc4 {[%clk 0:02:18]}  Bc6 {[%clk 0:01:31]} 24. Qd3 {[%clk 0:02:16]}  Bb5 {[%clk 0:01:27]} 25. Bf4 {[%clk 0:02:12]}  Rfd8 {[%clk 0:01:27]} 26. Rad1 {[%clk 0:01:52]}  Qxa5 {[%clk 0:01:19]} 27. Bxb5 {[%clk 0:01:51]}  Qxb5 {[%clk 0:01:05]} 28. Qg3 {[%clk 0:01:52]}  Kh7 {[%clk 0:00:37]} 29. e5 {[%clk 0:01:51]}  dxe5 {[%clk 0:00:34]} 30. Bxe5 {[%clk 0:01:50]}  Rxd1 {[%clk 0:00:33]} 31. Qxg7# {[%clk 0:01:49]} 1-0


[Site "https://www.chess.com"]

[Event "Titled Tuesday Blitz April 05 Late 2022"]
[White "Djordjevic, Dejan N"]
[Black "Manelyuk, Daniil"]
[WhiteFideId "913316"]
[BlackFideId "44173920"]
[WhiteElo "2262"]
[BlackElo "2209"]
[Result "1-0"]
[Round "06"]
[TimeControl "180+1"]
[Date "2022.04.06"]
[WhiteClock "0:00:08"]
[BlackClock "0:00:15"]

1. e4 {[%clk 0:02:59]}  e6 {[%clk 0:03:00]} 2. d3 {[%clk 0:02:59]}  c5 {[%clk 0:02:59]} 3. Nd2 {[%clk 0:03:00]}  Nc6 {[%clk 0:02:58]} 4. Ngf3 {[%clk 0:03:00]}  g6 {[%clk 0:02:58]} 5. g3 {[%clk 0:02:58]}  Bg7 {[%clk 0:02:58]} 6. Bg2 {[%clk 0:02:59]}  Nge7 {[%clk 0:02:57]} 7. O-O {[%clk 0:02:59]}  O-O {[%clk 0:02:57]} 8. c3 {[%clk 0:02:59]}  d6 {[%clk 0:02:56]} 9. Re1 {[%clk 0:02:59]}  Rb8 {[%clk 0:02:56]} 10. h4 {[%clk 0:02:59]}  b5 {[%clk 0:02:56]} 11. Nf1 {[%clk 0:02:49]}  b4 {[%clk 0:02:54]} 12. c4 {[%clk 0:02:46]}  e5 {[%clk 0:02:45]} 13. Ne3 {[%clk 0:02:40]}  Nd4 {[%clk 0:02:43]} 14. Nxd4 {[%clk 0:02:38]}  exd4 {[%clk 0:02:43]} 15. Nd5 {[%clk 0:02:34]}  Nxd5 {[%clk 0:02:43]} 16. exd5 {[%clk 0:02:32]}  Bf5 {[%clk 0:02:42]} 17. Bf4 {[%clk 0:02:30]}  Qd7 {[%clk 0:02:42]} 18. Qd2 {[%clk 0:02:21]}  Rfe8 {[%clk 0:02:29]} 19. Kh2 {[%clk 0:02:20]}  a5 {[%clk 0:02:14]} 20. Rac1 {[%clk 0:02:15]}  a4 {[%clk 0:02:13]} 21. Bf1 {[%clk 0:02:00]}  a3 {[%clk 0:01:57]} 22. bxa3 {[%clk 0:01:49]}  bxa3 {[%clk 0:01:58]} 23. Rb1 {[%clk 0:01:49]}  Be5 {[%clk 0:01:42]} 24. Bg5 {[%clk 0:01:08]}  Qa4 {[%clk 0:01:26]} 25. Kg1 {[%clk 0:01:00]}  Qa7 {[%clk 0:00:23]} 26. Rec1 {[%clk 0:00:38]}  Rb6 {[%clk 0:00:21]} 27. Rxb6 {[%clk 0:00:32]}  Qxb6 {[%clk 0:00:22]} 28. Re1 {[%clk 0:00:18]}  Rb8 {[%clk 0:00:21]} 29. Be7 {[%clk 0:00:12]}  Qb2 {[%clk 0:00:19]} 30. Qg5 {[%clk 0:00:08]}  h6 {[%clk 0:00:07]} 31. Qxh6 {[%clk 0:00:08]}  Bg7 {[%clk 0:00:07]} 32. Qf4 {[%clk 0:00:07]}  Qxa2 {[%clk 0:00:05]} 33. Bxd6 {[%clk 0:00:06]}  Rc8 {[%clk 0:00:05]} 34. h5 {[%clk 0:00:05]}  Qb2 {[%clk 0:00:05]} 35. g4 {[%clk 0:00:05]}  a2 {[%clk 0:00:05]} 36. gxf5 {[%clk 0:00:05]}  a1=Q {[%clk 0:00:04]} 37. Rxa1 {[%clk 0:00:05]}  Qxa1 {[%clk 0:00:05]} 38. fxg6 {[%clk 0:00:05]}  fxg6 {[%clk 0:00:05]} 39. hxg6 {[%clk 0:00:06]}  Qa8 {[%clk 0:00:05]} 40. Qf7+ {[%clk 0:00:05]}  Kh8 {[%clk 0:00:05]} 41. Be5 {[%clk 0:00:06]}  Rg8 {[%clk 0:00:04]} 42. Bh3 {[%clk 0:00:05]}  Qf8 {[%clk 0:00:03]} 43. Qxf8 {[%clk 0:00:03]}  Rxf8 {[%clk 0:00:04]} 44. Bd6 {[%clk 0:00:03]}  Rd8 {[%clk 0:00:03]} 45. Bxc5 {[%clk 0:00:03]}  Bf6 {[%clk 0:00:02]} 46. Bb6 {[%clk 0:00:01]}  Re8 {[%clk 0:00:01]} 47. Be6 {[%clk 0:00:01]}  Kg7 {[%clk 0:00:02]} 48. Bf7 {[%clk 0:00:02]}  Rb8 {[%clk 0:00:01]} 49. c5 {[%clk 0:00:01]}  Ra8 {[%clk 0:00:01]} 50. d6 {[%clk 0:00:02]}  Ra1+ {[%clk 0:00:02]} 51. Kg2 {[%clk 0:00:02]}  Rc1 {[%clk 0:00:02]} 52. d7 {[%clk 0:00:02]}  Be7 {[%clk 0:00:02]} 53. Be8 {[%clk 0:00:02]}  Kf6 {[%clk 0:00:02]} 54. Kf3 {[%clk 0:00:02]}  Kg7 {[%clk 0:00:02]} 55. Ke4 {[%clk 0:00:02]}  Re1+ {[%clk 0:00:03]} 56. Kxd4 {[%clk 0:00:03]}  Bf6+ {[%clk 0:00:04]} 57. Kd5 {[%clk 0:00:03]}  Re5+ {[%clk 0:00:04]} 58. Kd6 {[%clk 0:00:03]}  Re1 {[%clk 0:00:04]} 59. c6 {[%clk 0:00:03]}  Be7+ {[%clk 0:00:04]} 60. Kd5 {[%clk 0:00:03]}  Kf6 {[%clk 0:00:03]} 61. c7 {[%clk 0:00:03]}  Re5+ {[%clk 0:00:03]} 62. Kd4 {[%clk 0:00:04]}  Rb5 {[%clk 0:00:04]} 63. d8=Q {[%clk 0:00:03]}  Rxb6 {[%clk 0:00:03]} 64. Qxe7+ {[%clk 0:00:04]}  Kxe7 {[%clk 0:00:04]} 65. c8=Q {[%clk 0:00:04]}  Rd6+ {[%clk 0:00:04]} 66. Ke3 {[%clk 0:00:04]}  Re6+ {[%clk 0:00:05]} 67. Qxe6+ {[%clk 0:00:04]}  Kxe6 {[%clk 0:00:06]} 68. d4 {[%clk 0:00:04]}  Kf6 {[%clk 0:00:06]} 69. f4 {[%clk 0:00:04]}  Kg7 {[%clk 0:00:07]} 70. Bf7 {[%clk 0:00:05]}  Kh8 {[%clk 0:00:08]} 71. Ke4 {[%clk 0:00:05]}  Kg7 {[%clk 0:00:08]} 72. Ke5 {[%clk 0:00:06]}  Kh8 {[%clk 0:00:09]} 73. d5 {[%clk 0:00:06]}  Kg7 {[%clk 0:00:10]} 74. d6 {[%clk 0:00:06]}  Kh8 {[%clk 0:00:11]} 75. d7 {[%clk 0:00:07]}  Kg7 {[%clk 0:00:12]} 76. Ke6 {[%clk 0:00:07]}  Kh8 {[%clk 0:00:13]} 77. d8=Q+ {[%clk 0:00:07]}  Kg7 {[%clk 0:00:14]} 78. Qf6+ {[%clk 0:00:07]}  Kh6 {[%clk 0:00:15]} 79. g7+ {[%clk 0:00:07]}  Kh7 {[%clk 0:00:15]} 80. g8=Q# {[%clk 0:00:08]} 1-0


[Site "https://www.chess.com"]

[Event "Titled Tuesday Blitz April 05 Late 2022"]
[White "Dobre, Claudiu-Cristian"]
[Black "Kaganskiy, Gleb"]
[WhiteFideId "1211854"]
[BlackFideId "4132025"]
[WhiteElo "2207"]
[BlackElo "2165"]
[Result "0-1"]
[Round "06"]
[TimeControl "180+1"]
[Date "2022.04.06"]
[WhiteClock "0:00:02"]
[BlackClock "0:00:39"]

1. c4 {[%clk 0:03:00]}  e5 {[%clk 0:02:56]} 2. Nc3 {[%clk 0:02:59]}  Bb4 {[%clk 0:02:55]} 3. Qc2 {[%clk 0:02:58]}  Nc6 {[%clk 0:02:52]} 4. e3 {[%clk 0:02:56]}  Nf6 {[%clk 0:02:50]} 5. Nf3 {[%clk 0:02:56]}  O-O {[%clk 0:02:47]} 6. Nd5 {[%clk 0:02:56]}  Be7 {[%clk 0:02:46]} 7. a3 {[%clk 0:02:55]}  a5 {[%clk 0:02:40]} 8. Bd3 {[%clk 0:02:50]}  h6 {[%clk 0:02:37]} 9. O-O {[%clk 0:02:41]}  d6 {[%clk 0:02:34]} 10. Nxf6+ {[%clk 0:02:34]}  Bxf6 {[%clk 0:02:33]} 11. Be4 {[%clk 0:02:32]}  Be7 {[%clk 0:02:28]} 12. b3 {[%clk 0:02:23]}  Be6 {[%clk 0:02:26]} 13. Bb2 {[%clk 0:02:15]}  Qd7 {[%clk 0:02:24]} 14. h3 {[%clk 0:01:37]}  f5 {[%clk 0:02:21]} 15. Bxc6 {[%clk 0:01:37]}  bxc6 {[%clk 0:02:16]} 16. c5 {[%clk 0:01:34]}  Rab8 {[%clk 0:02:13]} 17. Rfc1 {[%clk 0:01:12]}  Bxb3 {[%clk 0:02:06]} 18. Qc3 {[%clk 0:01:12]}  Bd5 {[%clk 0:02:00]} 19. Ne1 {[%clk 0:00:49]}  Bf6 {[%clk 0:01:51]} 20. d4 {[%clk 0:00:13]}  Rb3 {[%clk 0:01:45]} 21. Qd2 {[%clk 0:00:12]}  f4 {[%clk 0:01:37]} 22. exf4 {[%clk 0:00:11]}  exf4 {[%clk 0:01:36]} 23. Bc3 {[%clk 0:00:11]}  f3 {[%clk 0:01:31]} 24. Nxf3 {[%clk 0:00:10]}  Bxf3 {[%clk 0:01:30]} 25. gxf3 {[%clk 0:00:10]}  Qxh3 {[%clk 0:01:16]} 26. Qc2 {[%clk 0:00:10]}  a4 {[%clk 0:01:14]} 27. Qe4 {[%clk 0:00:09]}  Bg5 {[%clk 0:01:03]} 28. Rc2 {[%clk 0:00:08]}  Rxf3 {[%clk 0:00:58]} 29. Bd2 {[%clk 0:00:02]}  Rg3+ {[%clk 0:00:43]} 30. fxg3 {[%clk 0:00:01]}  Rxg3+ {[%clk 0:00:39]} 31. Kf2 {[%clk 0:00:02]}  Qh2+ {[%clk 0:00:39]} 0-1


[Site "https://www.chess.com"]

[Event "Titled Tuesday Blitz April 05 Late 2022"]
[White "Domingo Nunez, Alejandro"]
[Black "Mickiewicz, Piotr"]
[WhiteFideId "22245561"]
[BlackFideId "1114891"]
[WhiteElo "2636"]
[BlackElo "2490"]
[Result "0-1"]
[Round "06"]
[TimeControl "180+1"]
[Date "2022.04.06"]
[WhiteClock "0:00:11"]
[BlackClock "0:00:05"]

1. c4 {[%clk 0:03:00]}  g6 {[%clk 0:02:59]} 2. g3 {[%clk 0:03:00]}  Bg7 {[%clk 0:02:59]} 3. Bg2 {[%clk 0:03:01]}  d6 {[%clk 0:02:57]} 4. Nc3 {[%clk 0:03:00]}  Nf6 {[%clk 0:02:58]} 5. e3 {[%clk 0:02:52]}  O-O {[%clk 0:02:56]} 6. Nge2 {[%clk 0:02:52]}  c6 {[%clk 0:02:56]} 7. O-O {[%clk 0:02:52]}  c5 {[%clk 0:02:57]} 8. d4 {[%clk 0:02:51]}  Nc6 {[%clk 0:02:57]} 9. b3 {[%clk 0:02:48]}  Bd7 {[%clk 0:02:53]} 10. Bb2 {[%clk 0:02:48]}  a6 {[%clk 0:02:51]} 11. Qd2 {[%clk 0:02:46]}  Rb8 {[%clk 0:02:47]} 12. Rac1 {[%clk 0:02:42]}  cxd4 {[%clk 0:02:23]} 13. exd4 {[%clk 0:02:43]}  b5 {[%clk 0:02:21]} 14. cxb5 {[%clk 0:02:31]}  axb5 {[%clk 0:02:22]} 15. Nxb5 {[%clk 0:02:31]}  Rxb5 {[%clk 0:02:18]} 16. Bxc6 {[%clk 0:02:32]}  Bxc6 {[%clk 0:02:17]} 17. Rxc6 {[%clk 0:02:32]}  Qa8 {[%clk 0:02:17]} 18. Qc2 {[%clk 0:02:20]}  Nd5 {[%clk 0:01:59]} 19. Qc4 {[%clk 0:01:45]}  Rfb8 {[%clk 0:01:54]} 20. Nc1 {[%clk 0:01:12]}  Nb4 {[%clk 0:01:51]} 21. Rc7 {[%clk 0:01:12]}  Nd5 {[%clk 0:01:10]} 22. Rc6 {[%clk 0:01:11]}  Nb4 {[%clk 0:01:04]} 23. a4 {[%clk 0:01:11]}  Qxc6 {[%clk 0:00:53]} 24. axb5 {[%clk 0:01:11]}  Qxb5 {[%clk 0:00:52]} 25. Qc7 {[%clk 0:01:10]}  Nd5 {[%clk 0:00:49]} 26. Qa7 {[%clk 0:01:02]}  Rc8 {[%clk 0:00:48]} 27. Re1 {[%clk 0:00:46]}  h5 {[%clk 0:00:47]} 28. Qa1 {[%clk 0:00:40]}  Rc2 {[%clk 0:00:45]} 29. Qb1 {[%clk 0:00:36]}  Qc6 {[%clk 0:00:44]} 30. Nd3 {[%clk 0:00:35]}  h4 {[%clk 0:00:37]} 31. Rc1 {[%clk 0:00:30]}  Rxc1+ {[%clk 0:00:34]} 32. Qxc1 {[%clk 0:00:30]}  Qb7 {[%clk 0:00:30]} 33. Qc4 {[%clk 0:00:28]}  h3 {[%clk 0:00:29]} 34. Kf1 {[%clk 0:00:26]}  Nb6 {[%clk 0:00:22]} 35. Qb5 {[%clk 0:00:25]}  Qh1+ {[%clk 0:00:21]} 36. Ke2 {[%clk 0:00:26]}  Nd5 {[%clk 0:00:21]} 37. Qe8+ {[%clk 0:00:08]}  Bf8 {[%clk 0:00:20]} 38. Qb5 {[%clk 0:00:09]}  Qe4+ {[%clk 0:00:13]} 39. Kd2 {[%clk 0:00:09]}  Bh6+ {[%clk 0:00:13]} 40. Kd1 {[%clk 0:00:09]}  Qh1+ {[%clk 0:00:11]} 41. Ke2 {[%clk 0:00:09]}  Qe4+ {[%clk 0:00:09]} 42. Kd1 {[%clk 0:00:09]}  Qf5 {[%clk 0:00:09]} 43. f4 {[%clk 0:00:08]}  Ne3+ {[%clk 0:00:08]} 44. Ke2 {[%clk 0:00:08]}  Qxb5 {[%clk 0:00:09]} 45. Kxe3 {[%clk 0:00:09]}  Qxb3 {[%clk 0:00:09]} 46. Kd2 {[%clk 0:00:09]}  Bg7 {[%clk 0:00:09]} 47. Bc1 {[%clk 0:00:09]}  Qc4 {[%clk 0:00:09]} 48. Ke2 {[%clk 0:00:10]}  Qxd4 {[%clk 0:00:09]} 49. Be3 {[%clk 0:00:11]}  Qe4 {[%clk 0:00:09]} 50. Nf2 {[%clk 0:00:11]}  Qc4+ {[%clk 0:00:09]} 51. Kf3 {[%clk 0:00:11]}  Bd4 {[%clk 0:00:09]} 52. Nxh3 {[%clk 0:00:11]}  Qd3 {[%clk 0:00:05]} 53. Kg4 {[%clk 0:00:09]}  Qxe3 {[%clk 0:00:05]} 54. Ng5 {[%clk 0:00:10]}  f5+ {[%clk 0:00:05]} 55. Kh3 {[%clk 0:00:10]}  Qe2 {[%clk 0:00:05]} 56. Nf3 {[%clk 0:00:10]}  Qxf3 {[%clk 0:00:04]} 57. Kh4 {[%clk 0:00:11]}  Qg4# {[%clk 0:00:05]} 0-1


[Site "https://www.chess.com"]